Workbook

Sheet Приложение 2
A1: № п/п | B1: Адрес | C1: Площадь | D1: Год ввода | E1: Этажи | F1: Подъезды | G1: Материал стен | H1: Вид крыши | I1: Коли- чество жителей, зареги- стриро- ванных по месту жительства | J1: Планируемый перечень работ по капитальному ремонту | K1: Трехлетка
A2: 1 | B2: 2 | C2: 3 | D2: 4 | E2: 5 | F2: 6 | G2: 7 | H2: 8 | I2: 9 | J2: 10 | K2: 11
A4: =FindSame(B3,B46:B20803) ->  | E4: =IF(A4="",""," - возможный вариант написания адреса МКД") ->  | J4: ПРИЛОЖЕНИЕ 2
H5: ПРИЛОЖЕНИЕ 2 | J5: к постановлению Правительства Алтайского края
J6: от ____________2018 № _____
A8: ПЕРЕЧЕНЬ многоквартирных домов, включенных в краевую программу "Капитальный ремонт общего имущества в многоквартирных домах, расположенных на территории Алтайского края" на 2014-2043 годы
A10: № п/п | B10: Адрес многоквартирного дома (далее - «МКД») | C10: Общая площадь жилых и нежилых ,помещений кв. м | D10: Год ввода в эксплу- атацию | E10: Коли-чество этажей | F10: Коли-чество подъез-дов | G10: Материал стен | H10: Вид крыши | I10: Коли- чество жителей, зареги- стриро- ванных по месту житель-ства | J10: Планируемый перечень работ по капитальному ремонту | K10: Планируе-мый период проведения капремонта
A11: 1 | B11: 2 | C11: 3 | D11: 4 | E11: 5 | F11: 6 | G11: 7 | H11: 8 | I11: 9 | J11: 10 | K11: 11
A12: Алейский район
A13: 1 | B13: Алейский район, п. Алейский, ул. Мира, д. 9 | C13: 702.1 | D13: 1960 | E13: 2 | F13: 2 | G13: деревянные | H13: скатная | I13: 31 | J13: Ремонт крыши; ремонт фундамента многоквартирного дома; ремонт фасада, утепление фасада; ремонт внутридомовых инженерных систем электро-, водоснабжения | K13: 2017-2019
A14: 2 | B14: Алейский район, п. Заветы Ильича, ул. Школьная, д. 10 | C14: 418.2 | D14: 1966 | E14: 2 | F14: 2 | G14: кирпичные | H14: скатная | I14: 15 | J14: Ремонт крыши; ремонт фундамента многоквартирного дома; ремонт фасада, утепление фасада; ремонт внутридомовых инженерных систем тепло-, электро-, водоснабжения, водоотведения | K14: 2041-2043
A15: 3 | B15: Алейский район, п. Заветы Ильича, ул. Школьная, д. 11 | C15: 418.2 | D15: 1966 | E15: 2 | F15: 2 | G15: кирпичные | H15: скатная | I15: 16 | J15: Ремонт крыши; ремонт фундамента многоквартирного дома; ремонт фасада, утепление фасада; ремонт внутридомовых инженерных систем тепло-, электро-, водоснабжения, водоотведения | K15: 2041-2043
A16: 4 | B16: Алейский район, п. Заветы Ильича, ул. Школьная, д. 12 | C16: 421.3 | D16: 1966 | E16: 2 | F16: 2 | G16: кирпичные | H16: скатная | I16: 17 | J16: Ремонт крыши; ремонт фундамента многоквартирного дома; ремонт фасада, утепление фасада; ремонт внутридомовых инженерных систем тепло-, электро-, водоснабжения, водоотведения | K16: 2041-2043
A17: 5 | B17: Алейский район, c. Боровское, ул. Новая, д. 7 | C17: 417 | D17: 1964 | E17: 2 | F17: 2 | G17: кирпичные | H17: скатная | I17: 12 | J17: Ремонт крыши; ремонт фундамента многоквартирного дома; ремонт внутридомовых инженерных систем электро-, водоснабжения | K17: 2041-2043
A18: 6 | B18: Алейский район, с. Дружба, пер. Торговый, д. 14 | C18: 300 | D18: 1961 | E18: 2 | F18: 2 | G18: кирпичные | H18: скатная | I18: 4 | J18: Ремонт крыши; ремонт фундамента многоквартирного дома; ремонт фасада, утепление фасада; ремонт внутридомовых инженерных систем электро-, водоснабжения, водоотведения | K18: 2038-2040
A19: 7 | B19: Алейский район, с. Дружба, пер. Торговый, д. 16 | C19: 343 | D19: 1964 | E19: 2 | F19: 2 | G19: кирпичные | H19: скатная | I19: 6 | J19: Ремонт крыши; ремонт фундамента многоквартирного дома; ремонт фасада, утепление фасада; ремонт внутридомовых инженерных систем электро-, водоснабжения, водоотведения | K19: 2041-2043
A20: 8 | B20: Алейский район, с. Дружба, ул. Комарова, д. 1 | C20: 419.2 | D20: 1961 | E20: 2 | F20: 2 | G20: кирпичные | H20: скатная | I20: 12 | J20: Ремонт крыши; ремонт фундамента многоквартирного дома; ремонт фасада, утепление фасада; ремонт внутридомовых инженерных систем электро-, водоснабжения, водоотведения | K20: 2023-2025
A21: 9 | B21: Алейский район, с. Дружба, ул. Комарова, д. 2 | C21: 419.2 | D21: 1961 | E21: 2 | F21: 2 | G21: кирпичные | H21: скатная | I21: 12 | J21: Ремонт крыши; ремонт фундамента многоквартирного дома; ремонт фасада, утепление фасада; ремонт внутридомовых инженерных систем электро-, водоснабжения, водоотведения | K21: 2032-2034
A22: 10 | B22: Алейский район, с. Дружба, ул. Комарова, д. 3 | C22: 425.4 | D22: 1964 | E22: 2 | F22: 2 | G22: кирпичные | H22: скатная | I22: 18 | J22: Ремонт крыши; ремонт фундамента многоквартирного дома; ремонт фасада, утепление фасада; ремонт внутридомовых инженерных систем электро-, водоснабжения, водоотведения | K22: 2026-2028
A23: 11 | B23: Алейский район, с. Дружба, ул. Комарова, д. 4 | C23: 408.8 | D23: 1961 | E23: 2 | F23: 2 | G23: кирпичные | H23: скатная | I23: 17 | J23: Ремонт крыши; ремонт фундамента многоквартирного дома; ремонт фасада, утепление фасада; ремонт внутридомовых инженерных систем электро-, водоснабжения, водоотведения | K23: 2035-2037
A24: 12 | B24: Алейский район, с. Дружба, ул. Комарова, д. 5 | C24: 594.9 | D24: 1964 | E24: 2 | F24: 3 | G24: кирпичные | H24: скатная | I24: 26 | J24: Ремонт крыши; ремонт фундамента многоквартирного дома; ремонт фасада, утепление фасада; ремонт внутридомовых инженерных систем электро-, водоснабжения, водоотведения | K24: 2017-2019
A25: 13 | B25: Алейский район, с. Дружба, ул. Комарова, д. 6 | C25: 420.5 | D25: 1964 | E25: 2 | F25: 2 | G25: кирпичные | H25: скатная | I25: 10 | J25: Ремонт крыши; ремонт фундамента многоквартирного дома; ремонт фасада, утепление фасада; ремонт внутридомовых инженерных систем электро-, водоснабжения, водоотведения | K25: 2038-2040
A26: 14 | B26: Алейский район, с. Дружба, ул. Комарова, д. 7 | C26: 589.7 | D26: 1964 | E26: 2 | F26: 3 | G26: кирпичные | H26: скатная | I26: 26 | J26: Ремонт крыши; ремонт фундамента многоквартирного дома; ремонт фасада, утепление фасада; ремонт внутридомовых инженерных систем электро-, водоснабжения, водоотведения | K26: 2020-2022
A27: 15 | B27: Алейский район, с. Дружба, ул. Комарова, д. 8 | C27: 426.9 | D27: 1961 | E27: 2 | F27: 2 | G27: кирпичные | H27: скатная | I27: 23 | J27: Ремонт крыши; ремонт фундамента многоквартирного дома; ремонт фасада, утепление фасада; ремонт внутридомовых инженерных систем электро-, водоснабжения, водоотведения | K27: 2029-2031
A28: 16 | B28: Алейский район, с. Дружба, ул. Комарова, д. 9 | C28: 597 | D28: 1964 | E28: 2 | F28: 3 | G28: кирпичные | H28: скатная | I28: 23 | J28: Ремонт крыши; ремонт фундамента многоквартирного дома; ремонт фасада, утепление фасада; ремонт внутридомовых инженерных систем электро-, водоснабжения, водоотведения | K28: 2029-2031
A29: 17 | B29: Алейский район, с. Дружба, ул. Комарова, д. 10 | C29: 428.5 | D29: 1964 | E29: 2 | F29: 2 | G29: кирпичные | H29: скатная | I29: 16 | J29: Ремонт крыши; ремонт фундамента многоквартирного дома; ремонт фасада, утепление фасада; ремонт внутридомовых инженерных систем электро-, водоснабжения, водоотведения | K29: 2020-2022
A30: 18 | B30: Алейский район, c. Кировское, ул. Мира, д. 2 | C30: 440.8 | D30: 1964 | E30: 2 | F30: 2 | G30: кирпичные | H30: скатная | I30: 13 | J30: Ремонт крыши | K30: 2017-2019
J31: Ремонт внутридомовых инженерных систем электро-, водоснабжения, водоотведения | K31: 2026-2028
J32: Ремонт фасада, утепление фасада; ремонт фундамента многоквартирного дома | K32: 2035-2037
A33: 19 | B33: Алейский район, c. Кировское, ул. Мира, д. 4 | C33: 419.6 | D33: 1964 | E33: 2 | F33: 2 | G33: кирпичные | H33: скатная | I33: 12 | J33: Ремонт внутридомовых инженерных систем электро-, тепло-, водоснабжения | K33: 2023-2025
J34: Ремонт крыши | K34: 2032-2034
J35: Ремонт фасада, утепление фасада; ремонт фундамента многоквартирного дома | K35: 2038-2040
A36: 20 | B36: Алейский район, c. Кировское, ул. Мира, д. 6 | C36: 424 | D36: 1963 | E36: 2 | F36: 2 | G36: кирпичные | H36: скатная | I36: 16 | J36: Ремонт крыши | K36: 2017-2019
J37: Ремонт внутридомовых инженерных систем электро-, тепло-, водоснабжения | K37: 2020-2022
J38: Ремонт фасада, утепление фасада; ремонт фундамента многоквартирного дома | K38: 2038-2040
A39: 21 | B39: Алейский район, c. Кировское, ул. Мира, д. 13 | C39: 420.3 | D39: 1964 | E39: 2 | F39: 2 | G39: кирпичные | H39: скатная | I39: 15 | J39: Ремонт крыши | K39: 2017-2019
J40: Ремонт внутридомовых инженерных систем электро-, тепло-, водоснабжения | K40: 2026-2028
J41: Ремонт фасада, утепление фасада; ремонт фундамента многоквартирного дома | K41: 2041-2043
A42: 22 | B42: Алейский район, c. Кировское, ул. Мира, д. 15 | C42: 431.2 | D42: 1964 | E42: 2 | F42: 2 | G42: кирпичные | H42: скатная | I42: 10 | J42: Ремонт крыши | K42: 2017-2019
J43: Ремонт внутридомовых инженерных систем электро-, тепло-, водоснабжения | K43: 2032-2034
J44: Ремонт фасада, утепление фасада; ремонт фундамента многоквартирного дома | K44: 2041-2043
A45: Итоговая площадь по Алейскому району, м² : | C45: =SUM(C13:C44) -> 9885.8 | D45: 22 | I45: =SUM(I13:I44) -> 350
A46: Алтайский район
A47: 1 | B47: Алтайский район, c. Алтайское, ул. Горная, д. 20 | C47: 369.7 | D47: 1974 | E47: 2 | F47: 1 | G47: блочные | H47: скатная | I47: 31 | J47: Ремонт фасада, утепление фасада; ремонт внутридомовых инженерных систем теплоснабжения, холодного водоснабжения, электроснабжения; водоотведения | K47: 2029-2031
A48: 2 | B48: Алтайский район, c. Алтайское, ул. Громоздина, д. 63 | C48: 620.4 | D48: 1974 | E48: 2 | F48: 2 | G48: кирпичные | H48: скатная | I48: 30 | J48: Ремонт фасада, утепление фасада; ремонт внутридомовых инженерных систем теплоснабжения, холодного водоснабжения, электроснабжения; водоотведения | K48: 2032-2034
A49: 3 | B49: Алтайский район, c. Алтайское, ул. Зои Космодемьянской, д. 35 | C49: 628 | D49: 1966 | E49: 2 | F49: 2 | G49: кирпичные | H49: скатная | I49: 24 | J49: Ремонт фасада, утепление фасада; ремонт внутридомовых инженерных систем теплоснабжения, холодного водоснабжения, электроснабжения; водоотведения | K49: 2026-2028
A50: 4 | B50: Алтайский район, c. Алтайское, ул. Зои Космодемьянской, д. 37 | C50: 558.8 | D50: 1966 | E50: 2 | F50: 2 | G50: кирпичные | H50: скатная | I50: 18 | J50: Ремонт фасада, утепление фасада; ремонт внутридомовых инженерных систем теплоснабжения, холодного водоснабжения, электроснабжения; водоотведения | K50: 2026-2028
A51: 5 | B51: Алтайский район, c. Алтайское, ул. Зои Космодемьянской, д. 39 | C51: 619.6 | D51: 1966 | E51: 2 | F51: 2 | G51: кирпичные | H51: скатная | I51: 22 | J51: Ремонт фасада, утепление фасада; ремонт внутридомовых инженерных систем теплоснабжения, холодного водоснабжения, электроснабжения; водоотведения | K51: 2032-2034
A52: 6 | B52: Алтайский район, c. Алтайское, ул. Зои Космодемьянской, д. 42 | C52: 589.9 | D52: 1964 | E52: 2 | F52: 3 | G52: кирпичные | H52: скатная | I52: 17 | J52: Ремонт фасада, утепление фасада; ремонт внутридомовых инженерных систем теплоснабжения, холодного водоснабжения, электроснабжения; водоотведения | K52: 2023-2025
A53: 7 | B53: Алтайский район, c. Алтайское, ул. Зои Космодемьянской, д. 44 | C53: 536.8 | D53: 1965 | E53: 2 | F53: 3 | G53: кирпичные | H53: скатная | I53: 28 | J53: Ремонт фасада, утепление фасада; ремонт внутридомовых инженерных систем теплоснабжения, холодного водоснабжения, электроснабжения; водоотведения | K53: 2032-2034
A54: 8 | B54: Алтайский район, с. Алтайское, ул. К. Маркса, д. 59 | C54: 911.1 | D54: 2012 | E54: 3 | F54: 1 | G54: кирпичные | H54: скатная | I54: 58 | J54: Ремонт внутридомовых инженерных систем теплоснабжения, холодного водоснабжения, электроснабжения; водоотведения | K54: 2038-2040
A55: 9 | B55: Алтайский район, c. Алтайское, ул. К. Маркса, д. 258 | C55: 297 | D55: 2012 | E55: 2 | F55: 1 | G55: кирпичные | H55: скатная | I55: 10 | J55: Ремонт фасада, утепление фасада; ремонт внутридомовых инженерных систем теплоснабжения, холодного водоснабжения, электроснабжения; водоотведения | K55: 2038-2040
A56: 10 | B56: Алтайский район, c. Алтайское, ул. МТС, д. 16 | C56: 605.8 | D56: 1971 | E56: 2 | F56: 2 | G56: кирпичные | H56: скатная | I56: 31 | J56: Ремонт фасада, утепление фасада; ремонт внутридомовых инженерных систем теплоснабжения, холодного водоснабжения, электроснабжения; водоотведения | K56: 2023-2025
A57: 11 | B57: Алтайский район, c. Алтайское, ул. Ключевая, д. 52 а | C57: 1276.9 | D57: 2016 | E57: 3 | F57: 2 | G57: блочные | H57: скатная | I57: 6 | J57: Ремонт крыши | K57: 2041-2043
A58: 12 | B58: Алтайский район, c. Алтайское, ул. М. Горького, д. 10в/7 | C58: 1278.2 | D58: 2016 | E58: 3 | F58: 3 | G58: кирпичные | H58: скатная | I58: 17 | J58: Ремонт крыши | K58: 2041-2043
A59: 13 | B59: Алтайский район, c. Алтайское, ул. М. Горького, д. 10в/8 | C59: 1267.9 | D59: 2015 | E59: 3 | F59: 3 | G59: кирпичные | H59: скатная | I59: 25 | J59: Ремонт крыши | K59: 2041-2043
A60: 14 | B60: Алтайский район, c. Алтайское, ул. Октябрьская, д. 14 б | C60: 921.9 | D60: 1984 | E60: 2 | F60: 3 | G60: кирпичные | H60: скатная | I60: 34 | J60: Ремонт фасада, утепление фасада; ремонт внутридомовых инженерных систем теплоснабжения, холодного водоснабжения, электроснабжения; водоотведения | K60: 2032-2034
A61: 15 | B61: Алтайский район, c. Алтайское, ул. Октябрьская, д. 18 | C61: 369.9 | D61: 1966 | E61: 2 | F61: 2 | G61: кирпичные | H61: скатная | I61: 18 | J61: Ремонт фасада, утепление фасада; ремонт внутридомовых инженерных систем теплоснабжения, холодного водоснабжения, электроснабжения; водоотведения | K61: 2026-2028
A62: 16 | B62: Алтайский район, c. Алтайское, ул. Октябрьская, д. 20 а | C62: 1193.8 | D62: 2011 | E62: 4 | F62: 1 | G62: кирпичные | H62: скатная | I62: 27 | J62: Ремонт фасада, утепление фасада; ремонт внутридомовых инженерных систем теплоснабжения, холодного водоснабжения, электроснабжения; водоотведения | K62: 2041-2043
A63: 17 | B63: Алтайский район, c. Алтайское, ул. Октябрьская, д. 22 | C63: 1076.2 | D63: 2007 | E63: 3 | F63: 3 | G63: кирпичные | H63: скатная | I63: 32 | J63: Ремонт фасада, утепление фасада; ремонт внутридомовых инженерных систем теплоснабжения, холодного водоснабжения, электроснабжения; водоотведения | K63: 2041-2043
A64: 18 | B64: Алтайский район, c. Алтайское, ул. Октябрьская, д. 24 | C64: 734 | D64: 1974 | E64: 2 | F64: 2 | G64: блочные | H64: скатная | I64: 29 | J64: Ремонт фасада, утепление фасада; ремонт внутридомовых инженерных систем теплоснабжения, холодного водоснабжения, электроснабжения; водоотведения | K64: 2026-2028
A65: 19 | B65: Алтайский район, c. Алтайское, ул. Подгорная, д. 35 | C65: 549.8 | D65: 1981 | E65: 2 | F65: 3 | G65: блочные | H65: скатная | I65: 19 | J65: Утепление фасада | K65: 2017-2019
A66: 20 | B66: Алтайский район, c. Алтайское, ул. Светоносова, д. 5 | C66: 732.4 | D66: 1981 | E66: 2 | F66: 2 | G66: кирпичные | H66: скатная | I66: 32 | J66: Ремонт фасада, утепление фасада; ремонт внутридомовых инженерных систем теплоснабжения, холодного водоснабжения, электроснабжения; водоотведения | K66: 2035-2037
A67: 21 | B67: Алтайский район, c. Алтайское, ул. Советская, д. 103 | C67: 1168.6 | D67: 1982 | E67: 2 | F67: 4 | G67: блочные | H67: скатная | I67: 48 | J67: Ремонт фасада, утепление фасада; ремонт внутридомовых инженерных систем теплоснабжения, холодного водоснабжения, электроснабжения; водоотведения | K67: 2029-2031
A68: 22 | B68: Алтайский район, c. Алтайское, ул. Советская, д. 104 | C68: 598.2 | D68: 1983 | E68: 2 | F68: 3 | G68: блочные | H68: скатная | I68: 30 | J68: Ремонт фасада, утепление фасада; ремонт внутридомовых инженерных систем теплоснабжения, холодного водоснабжения, электроснабжения; водоотведения | K68: 2017-2019
A69: 23 | B69: Алтайский район, c. Алтайское, ул. Советская, д. 105 | C69: 1168.7 | D69: 1984 | E69: 2 | F69: 4 | G69: блочные | H69: скатная | I69: 42 | J69: Ремонт фасада, утепление фасада; ремонт внутридомовых инженерных систем теплоснабжения, холодного водоснабжения, электроснабжения; водоотведения | K69: 2029-2031
A70: 24 | B70: Алтайский район, c. Алтайское, ул. Советская, д. 106 | C70: 1168.7 | D70: 1977 | E70: 2 | F70: 4 | G70: блочные | H70: скатная | I70: 39 | J70: Ремонт фасада, утепление фасада; ремонт внутридомовых инженерных систем теплоснабжения, холодного водоснабжения, электроснабжения; водоотведения | K70: 2029-2031
A71: 25 | B71: Алтайский район, c. Алтайское, ул. Советская, д. 106а | C71: 1806.8 | D71: 2006 | E71: 4 | F71: 3 | G71: кирпичные | H71: скатная | I71: 31 | J71: Ремонт фасада, утепление фасада; ремонт внутридомовых инженерных систем теплоснабжения, холодного водоснабжения, электроснабжения; водоотведения | K71: 2041-2043
A72: 26 | B72: Алтайский район, c. Алтайское, ул. Советская, д. 108 | C72: 589.9 | D72: 1977 | E72: 2 | F72: 2 | G72: блочные | H72: скатная | I72: 28 | J72: Ремонт фасада, утепление фасада; ремонт внутридомовых инженерных систем теплоснабжения, холодного водоснабжения, электроснабжения; водоотведения | K72: 2035-2037
A73: 27 | B73: Алтайский район, c. Алтайское, ул. Советская, д. 110 | C73: 291.3 | D73: 1968 | E73: 2 | F73: 1 | G73: кирпичные | H73: скатная | I73: 17 | J73: Ремонт фасада, утепление фасада; ремонт внутридомовых инженерных систем теплоснабжения, холодного водоснабжения, электроснабжения; водоотведения | K73: 2032-2034
A74: 28 | B74: Алтайский район, c. Алтайское, ул. Советская, д. 112 | C74: 545.5 | D74: 1969 | E74: 2 | F74: 3 | G74: кирпичные | H74: скатная | I74: 25 | J74: Ремонт фасада, утепление фасада; ремонт внутридомовых инженерных систем теплоснабжения, холодного водоснабжения, электроснабжения; водоотведения | K74: 2023-2025
A75: 29 | B75: Алтайский район, c. Алтайское, ул. Советская, д. 113 | C75: 480.5 | D75: 1968 | E75: 2 | F75: 3 | G75: кирпичные | H75: скатная | I75: 27 | J75: Ремонт фасада, утепление фасада; ремонт внутридомовых инженерных систем теплоснабжения, холодного водоснабжения, электроснабжения; водоотведения | K75: 2017-2019
A76: 30 | B76: Алтайский район, c. Алтайское, ул. Советская, д. 114 | C76: 492.7 | D76: 1966 | E76: 2 | F76: 3 | G76: кирпичные | H76: скатная | I76: 19 | J76: Ремонт фасада, утепление фасада; ремонт внутридомовых инженерных систем теплоснабжения, холодного водоснабжения, электроснабжения; водоотведения | K76: 2023-2025
A77: 31 | B77: Алтайский район, c. Алтайское, ул. Советская, д. 115 | C77: 729.4 | D77: 1972 | E77: 2 | F77: 2 | G77: кирпичные | H77: скатная | I77: 33 | J77: Ремонт фасада, утепление фасада; ремонт внутридомовых инженерных систем теплоснабжения, холодного водоснабжения, электроснабжения; водоотведения | K77: 2023-2025
A78: 32 | B78: Алтайский район, c. Алтайское, ул. Советская, д. 116 | C78: 714.2 | D78: 1970 | E78: 2 | F78: 2 | G78: кирпичные | H78: скатная | I78: 25 | J78: Ремонт фасада, утепление фасада; ремонт внутридомовых инженерных систем теплоснабжения, холодного водоснабжения, электроснабжения; водоотведения | K78: 2023-2025
A79: 33 | B79: Алтайский район, c. Алтайское, ул. Советская, д. 118 | C79: 729.1 | D79: 1972 | E79: 2 | F79: 2 | G79: кирпичные | H79: скатная | I79: 31 | J79: Ремонт фасада, утепление фасада; ремонт внутридомовых инженерных систем теплоснабжения, холодного водоснабжения, электроснабжения; водоотведения | K79: 2017-2019
A80: 34 | B80: Алтайский район, c. Алтайское, ул. Советская, д. 126 | C80: 1390.1 | D80: 2006 | E80: 3 | F80: 3 | G80: блочные | H80: скатная | I80: 55 | J80: Ремонт фасада, утепление фасада; ремонт внутридомовых инженерных систем теплоснабжения, холодного водоснабжения, электроснабжения; водоотведения | K80: 2041-2043
A81: 35 | B81: Алтайский район, c. Алтайское, ул. Советская, д. 127 | C81: 833.4 | D81: 1987 | E81: 2 | F81: 3 | G81: блочные | H81: скатная | I81: 38 | J81: Ремонт фасада, утепление фасада; ремонт внутридомовых инженерных систем теплоснабжения, холодного водоснабжения, электроснабжения; водоотведения | K81: 2035-2037
A82: 36 | B82: Алтайский район, c. Алтайское, ул. Советская, д. 133 | C82: 305.2 | D82: 1962 | E82: 2 | F82: 1 | G82: кирпичные | H82: скатная | I82: 10 | J82: Ремонт фасада, утепление фасада; ремонт внутридомовых инженерных систем теплоснабжения, холодного водоснабжения, электроснабжения; водоотведения | K82: 2023-2025
A83: 37 | B83: Алтайский район, c. Алтайское, ул. Советская, д. 135 | C83: 1261.8 | D83: 1990 | E83: 3 | F83: 3 | G83: блочные | H83: скатная | I83: 56 | J83: Ремонт фасада, утепление фасада; ремонт внутридомовых инженерных систем теплоснабжения, холодного водоснабжения, электроснабжения; водоотведения | K83: 2035-2037
A84: 38 | B84: Алтайский район, c. Алтайское, ул. Советская, д. 174 | C84: 347.2 | D84: 1971 | E84: 2 | F84: 2 | G84: кирпичные | H84: скатная | I84: 14 | J84: Ремонт фасада, утепление фасада; ремонт внутридомовых инженерных систем теплоснабжения, холодного водоснабжения, электроснабжения; водоотведения | K84: 2026-2028
A85: 39 | B85: Алтайский район, c. Алтайское, ул. Советская, д. 198 | C85: 618.5 | D85: 1962 | E85: 2 | F85: 2 | G85: кирпичные | H85: скатная | I85: 26 | J85: Ремонт фасада, утепление фасада; ремонт внутридомовых инженерных систем теплоснабжения, холодного водоснабжения, электроснабжения; водоотведения | K85: 2017-2019
A86: 40 | B86: Алтайский район, c. Алтайское, ул. Советская, д. 200 | C86: 473.6 | D86: 1964 | E86: 2 | F86: 3 | G86: кирпичные | H86: скатная | I86: 18 | J86: Ремонт фасада, утепление фасада; ремонт внутридомовых инженерных систем теплоснабжения, холодного водоснабжения, электроснабжения; водоотведения | K86: 2017-2019
A87: 41 | B87: Алтайский район, c. Алтайское, ул. Советская, д. 202 | C87: 652.3 | D87: 1961 | E87: 2 | F87: 2 | G87: кирпичные | H87: скатная | I87: 33 | J87: Ремонт фасада, утепление фасада; ремонт внутридомовых инженерных систем теплоснабжения, холодного водоснабжения, электроснабжения; водоотведения; ремонт фундамента многоквартирного дома | K87: 2017-2019
A88: 42 | B88: Алтайский район, c. Алтайское, ул. Советская, д. 204 | C88: 636.5 | D88: 1963 | E88: 2 | F88: 2 | G88: кирпичные | H88: скатная | I88: 22 | J88: Ремонт фасада, утепление фасада; ремонт внутридомовых инженерных систем теплоснабжения, холодного водоснабжения, электроснабжения; водоотведения | K88: 2017-2019
A89: 43 | B89: Алтайский район, c. Алтайское, ул. Советская, д. 233 | C89: 641.5 | D89: 1974 | E89: 2 | F89: 2 | G89: блочные | H89: скатная | I89: 31 | J89: Ремонт фасада, утепление фасада; ремонт внутридомовых инженерных систем теплоснабжения, холодного водоснабжения, электроснабжения; водоотведения | K89: 2026-2028
A90: 44 | B90: Алтайский район, c. Алтайское, ул. Советская, д. 404 | C90: 383.3 | D90: 1963 | E90: 2 | F90: 2 | G90: кирпичные | H90: скатная | I90: 22 | J90: Ремонт фасада, утепление фасада; ремонт внутридомовых инженерных систем теплоснабжения, холодного водоснабжения, электроснабжения; водоотведения | K90: 2023-2025
A91: 45 | B91: Алтайский район, c. Алтайское, ул. Целинная, д. 18 | C91: 630.9 | D91: 1964 | E91: 2 | F91: 2 | G91: кирпичные | H91: скатная | I91: 22 | J91: Ремонт фасада, утепление фасада; ремонт внутридомовых инженерных систем теплоснабжения, холодного водоснабжения, электроснабжения; водоотведения; ремонт фундамента многоквартирного дома | K91: 2017-2019
A92: 46 | B92: Алтайский район, c. Алтайское, ул. Целинная, д. 20 | C92: 623.6 | D92: 1965 | E92: 2 | F92: 4 | G92: кирпичные | H92: скатная | I92: 46 | J92: Ремонт фасада, утепление фасада; ремонт внутридомовых инженерных систем теплоснабжения, холодного водоснабжения, электроснабжения; водоотведения | K92: 2026-2028
A93: 47 | B93: Алтайский район, c. Алтайское, ул. Целинная, д. 20 а | C93: 587.2 | D93: 1980 | E93: 2 | F93: 2 | G93: блочные | H93: скатная | I93: 24 | J93: Ремонт фасада, утепление фасада; ремонт внутридомовых инженерных систем теплоснабжения, холодного водоснабжения, электроснабжения; водоотведения | K93: 2038-2040
A94: 48 | B94: Алтайский район, c. Алтайское, ул. Целинная, д. 20 б | C94: 582.3 | D94: 1979 | E94: 2 | F94: 2 | G94: блочные | H94: скатная | I94: 23 | J94: Ремонт фасада, утепление фасада; ремонт внутридомовых инженерных систем теплоснабжения, холодного водоснабжения, электроснабжения; водоотведения | K94: 2038-2040
A95: 49 | B95: Алтайский район, c. Алтайское, ул. Целинная, д. 22 | C95: 631 | D95: 1969 | E95: 2 | F95: 2 | G95: кирпичные | H95: скатная | I95: 28 | J95: Ремонт фасада, утепление фасада; ремонт внутридомовых инженерных систем теплоснабжения, холодного водоснабжения, электроснабжения; водоотведения | K95: 2017-2019
A96: 50 | B96: Алтайский район, c. Алтайское, ул. Целинная, д. 24 | C96: 651.6 | D96: 1965 | E96: 2 | F96: 3 | G96: кирпичные | H96: скатная | I96: 41 | J96: Ремонт фасада, утепление фасада; ремонт внутридомовых инженерных систем теплоснабжения, холодного водоснабжения, электроснабжения; водоотведения | K96: 2026-2028
A97: 51 | B97: Алтайский район, c. Алтайское, ул. Целинная, д. 25 | C97: 552.5 | D97: 1966 | E97: 2 | F97: 3 | G97: кирпичные | H97: скатная | I97: 25 | J97: Ремонт фасада, утепление фасада; ремонт внутридомовых инженерных систем теплоснабжения, холодного водоснабжения, электроснабжения; водоотведения | K97: 2026-2028
A98: 52 | B98: Алтайский район, c. Алтайское, ул. Целинная, д. 26 | C98: 634.9 | D98: 1964 | E98: 2 | F98: 2 | G98: кирпичные | H98: скатная | I98: 19 | J98: Ремонт фасада, утепление фасада; ремонт внутридомовых инженерных систем теплоснабжения, холодного водоснабжения, электроснабжения; водоотведения | K98: 2023-2025
A99: 53 | B99: Алтайский район, c. Алтайское, ул. Яркина, д. 52 | C99: 546.5 | D99: 1951 | E99: 2 | F99: 1 | G99: смешанные | H99: скатная | I99: 29 | J99: Утепление фасада | K99: 2017-2019
A100: 54 | B100: Алтайский район, c. Ая, ул. 70 лет Октября, д. 2 | C100: 612.4 | D100: 1970 | E100: 2 | F100: 2 | G100: кирпичные | H100: скатная | I100: 31 | J100: Ремонт фасада, утепление фасада | K100: 2017-2019
A101: 55 | B101: Алтайский район, c. Ая, ул. 70 лет Октября, д. 4 | C101: 620.7 | D101: 1970 | E101: 2 | F101: 2 | G101: кирпичные | H101: скатная | I101: 47 | J101: Ремонт фасада, утепление фасада | K101: 2017-2019
A102: 56 | B102: Алтайский район, c. Ая, ул. 70 лет Октября, д. 6 | C102: 515.5 | D102: 1970 | E102: 2 | F102: 2 | G102: кирпичные | H102: скатная | I102: 28 | J102: Ремонт фасада, утепление фасада | K102: 2017-2019
A103: 57 | B103: Алтайский район, c. Ая, ул. 70 лет Октября, д. 8 | C103: 378.9 | D103: 1967 | E103: 2 | F103: 2 | G103: кирпичные | H103: скатная | I103: 20 | J103: Ремонт фасада, утепление фасада | K103: 2017-2019
A104: 58 | B104: Алтайский район, c. Ая, ул. 70 лет Октября, д. 10 | C104: 376.4 | D104: 1966 | E104: 2 | F104: 2 | G104: кирпичные | H104: скатная | I104: 25 | J104: Ремонт фасада, утепление фасада | K104: 2017-2019
A105: 59 | B105: Алтайский район, c. Нижнекаменка, ул. 60 лет Октября, д. 72 | C105: 394.7 | D105: 1962 | E105: 2 | F105: 2 | G105: панельные | H105: скатная | I105: 18 | J105: Ремонт фасада, утепление фасада; ремонт внутридомовых инженерных систем теплоснабжения, холодного водоснабжения, электроснабжения; водоотведения | K105: 2023-2025
A106: 60 | B106: Алтайский район, c. Сараса, ул. Кузьмина, д. 52 | C106: 1166.5 | D106: 1981 | E106: 2 | F106: 2 | G106: панельные | H106: рулонная | I106: 37 | J106: Ремонт фасада, утепление фасада; ремонт внутридомовых инженерных систем теплоснабжения, холодного водоснабжения, электроснабжения; водоотведения | K106: 2017-2019
A107: 61 | B107: Алтайский район, c. Сараса, ул. Кузьмина, д. 59 | C107: 367.7 | D107: 1955 | E107: 2 | F107: 2 | G107: кирпичные | H107: скатная | I107: 14 | J107: Ремонт фасада, утепление фасада; ремонт внутридомовых инженерных систем теплоснабжения, холодного водоснабжения, электроснабжения; водоотведения | K107: 2017-2019
A108: Итоговая площадь по Алтайскому району, м² : | C108: =SUM(C47:C107) -> 43038.4 | D108: 61 | I108: =SUM(I47:I107) -> 1705
A109: Баевский район
A110: 1 | B110: Баевский район, с. Баево, ул. 50 лет Октября, д. 8 | C110: 342.9 | D110: 1963 | E110: 2 | F110: 3 | G110: кирпичные | H110: скатная | I110: 26 | J110: Ремонт крыши | K110: 2017-2019
J111: Ремонт фасада, утепление фасада; ремонт внутридомовых инженерных систем | K111: 2023-2025
J112: Ремонт фундамента многоквартирного дома | K112: 2032-2034
J113: Ремонт внутридомовых инженерных систем | K113: 2035-2037
A114: 2 | B114: Баевский район, с. Баево, ул. 50 лет Октября, д. 9 | C114: 380.2 | D114: 1965 | E114: 2 | F114: 1 | G114: кирпичные | H114: скатная | I114: 12 | J114: Ремонт фасада, утепление фасада; ремонт внутридомовых инженерных систем; ремонт фундамента многоквартирного дома | K114: 2026-2028
J115: Ремонт внутридомовых инженерных систем; ремонт крыши | K115: 2041-2043
A116: 3 | B116: Баевский район, с. Баево, ул. 50 лет Октября, д. 12 | C116: 525.1 | D116: 1964 | E116: 2 | F116: 3 | G116: кирпичные | H116: скатная | I116: 22 | J116: Ремонт внутридомовых инженерных систем; ремонт фундамента многоквартирного дома | K116: 2026-2028
J117: Ремонт крыши; ремонт внутридомовых инженерных систем | K117: 2041-2043
A118: 4 | B118: Баевский район, с. Баево, ул. 50 лет Октября, д. 14 | C118: 597.4 | D118: 1968 | E118: 2 | F118: 2 | G118: кирпичные | H118: скатная | I118: 17 | J118: Ремонт внутридомовых инженерных систем | K118: 2026-2028
J119: Ремонт фундамента многоквартирного дома | K119: 2035-2037
J120: Ремонт крыши; ремонт внутридомовых инженерных систем | K120: 2041-2043
A121: 5 | B121: Баевский район, с. Баево, ул. Кулундинская, д. 5 | C121: 734.5 | D121: 1969 | E121: 2 | F121: 2 | G121: блочные | H121: скатная | I121: 38 | J121: Ремонт внутридомовых инженерных систем | K121: 2023-2025
J122: Ремонт фундамента многоквартирного дома | K122: 2032-2034
J123: Ремонт внутридомовых инженерных систем; ремонт крыши | K123: 2041-2043
A124: 6 | B124: Баевский район, с. Баево, ул. Ленина, д. 53 | C124: 486.4 | D124: 1965 | E124: 2 | F124: 1 | G124: кирпичные | H124: скатная | I124: 20 | J124: Ремонт фасада, утепление фасада; ремонт внутридомовых инженерных систем | K124: 2023-2025
J125: Ремонт фундамента многоквартирного дома | K125: 2026-2028
J126: Ремонт внутридомовых инженерных систем; ремонт крыши | K126: 2041-2043
A127: 7 | B127: Баевский район, с. Баево, ул. Ленина, д. 55 | C127: 355.6 | D127: 1971 | E127: 2 | F127: 2 | G127: блочные | H127: скатная | I127: 12 | J127: Ремонт фасада, утепление фасада; ремонт внутридомовых инженерных систем | K127: 2023-2025
J128: Ремонт фундамента многоквартирного дома | K128: 2035-2037
J129: Ремонт крыши; ремонт внутридомовых инженерных систем | K129: 2041-2043
A130: 8 | B130: Баевский район, с. Баево, ул. Ленина, д. 61 | C130: 573.7 | D130: 1971 | E130: 2 | F130: 2 | G130: кирпичные | H130: скатная | I130: 25 | J130: Ремонт подвальных помещений, относящихся к общему имуществу в многоквартирном доме; ремонт фасада, утепление фасада | K130: 2023-2025
J131: Ремонт внутридомовых инженерных систем | K131: 2026-2028
J132: Ремонт фундамента многоквартирного дома | K132: 2032-2034
J133: Ремонт крыши | K133: 2041-2043
A134: 9 | B134: Баевский район, с. Баево, ул. Терешковой, д. 23 | C134: 365.6 | D134: 1972 | E134: 2 | F134: 1 | G134: блочные | H134: скатная | I134: 15 | J134: Ремонт внутридомовых инженерных систем | K134: 2023-2025
J135: Ремонт фундамента многоквартирного дома | K135: 2032-2034
J136: Ремонт внутридомовых инженерных систем | K136: 2035-2037
J137: Ремонт крыши | K137: 2041-2043
A138: 10 | B138: Баевский район, с. Баево, ул. Терешковой, д. 28 | C138: 352.8 | D138: 1968 | E138: 2 | F138: 2 | G138: блочные | H138: скатная | I138: 16 | J138: Ремонт внутридомовых инженерных систем; ремонт фундамента многоквартирного дома | K138: 2026-2028
J139: Ремонт крыши | K139: 2041-2043
A140: 11 | B140: Баевский район, с. Баево, ул. Терешковой, д. 30 | C140: 354.6 | D140: 1968 | E140: 2 | F140: 1 | G140: блочные | H140: скатная | I140: 14 | J140: Ремонт внутридомовых инженерных систем; ремонт фундамента многоквартирного дома | K140: 2026-2028
J141: Ремонт крыши | K141: 2041-2043
A142: 12 | B142: Баевский район, с. Баево, ул. Терешковой, д. 30А | C142: 1241.4 | D142: 1984 | E142: 3 | F142: 3 | G142: блочные | H142: скатная | I142: 34 | J142: Ремонт подвальных помещений, относящихся к общему имуществу в многоквартирном доме; ремонт фасада, утепление фасада | K142: 2023-2025
J143: Ремонт внутридомовых инженерных систем; ремонт фундамента многоквартирного дома | K143: 2026-2028
J144: Ремонт крыши | K144: 2041-2043
A145: 13 | B145: Баевский район, с. Баево, ул. Терешковой, д. 32 | C145: 1285.9 | D145: 1988 | E145: 3 | F145: 3 | G145: блочные | H145: скатная | I145: 41 | J145: Ремонт подвальных помещений, относящихся к общему имуществу в многоквартирном доме; ремонт фасада, утепление фасада; ремонт внутридомовых инженерных систем | K145: 2023-2025
J146: Ремонт внутридомовых инженерных систем | K146: 2035-2037
J147: Ремонт крыши | K147: 2041-2043
A148: 14 | B148: Баевский район, с. Баево, ул. Щеблыкина, д. 62 | C148: 1272.4 | D148: 1996 | E148: 3 | F148: 3 | G148: блочные | H148: скатная | I148: 39 | J148: Ремонт подвальных помещений, относящихся к общему имуществу в многоквартирном доме; ремонт внутридомовых инженерных систем | K148: 2023-2025
J149: Ремонт фасада, утепление фасада | K149: 2026-2028
J150: Ремонт внутридомовых инженерных систем | K150: 2035-2037
J151: Ремонт крыши | K151: 2041-2043
A152: 15 | B152: Баевский район, c. Нижнечуманка, ул. Заринская, д. 7 | C152: 344.6 | D152: 1962 | E152: 2 | F152: 2 | G152: кирпичные | H152: скатная | I152: 0 | J152: Ремонт крыши | K152: 2017-2019
J153: Ремонт внутридомовых инженерных систем; ремонт фундамента многоквартирного дома; ремонт фасада, утепление фасада | K153: 2026-2028
A154: Итоговая площадь по Баевскому району, м² : | C154: =SUM(C110:C153) -> 9213.1 | D154: 15 | I154: =SUM(I110:I153) -> 331
A155: Бийский район
A156: 1 | B156: Бийский район, п. Боровой, ул. 40 лет Победы, д. 2 | C156: 1100 | D156: 1983 | E156: 2 | F156: 2 | G156: кирпичные | H156: скатная | I156: 29 | J156: Ремонт фундамента многоквартирного дома; ремонт фасада; ремонт крыши | K156: 2026-2028
J157: Ремонт внутридомовых инженерных систем электроснабжения, холодного водоснабжения, водоотведения, теплоснабжения | K157: 2032-2034
A158: 2 | B158: Бийский район, п. Заря, ул. Центральная, д. 20 | C158: 532.7 | D158: 1962 | E158: 2 | F158: 2 | G158: кирпичные | H158: скатная | I158: 27 | J158: Ремонт внутридомовых инженерных систем электроснабжения, холодного водоснабжения, водоотведения, теплоснабжения | K158: 2020-2022
J159: Ремонт фундамента многоквартирного дома | K159: 2026-2028
A160: 3 | B160: Бийский район, п. Заря, ул. Центральная, д. 22 | C160: 533.1 | D160: 1962 | E160: 2 | F160: 2 | G160: кирпичные | H160: скатная | I160: 35 | J160: Ремонт внутридомовых инженерных систем электроснабжения, холодного водоснабжения, водоотведения, теплоснабжения | K160: 2029-2031
J161: Ремонт фундамента многоквартирного дома | K161: 2032-2034
J162: Ремонт фасада; ремонт крыши | K162: 2035-2037
A163: 4 | B163: Бийский район, п. Заря, ул. Центральная, д. 24 | C163: 540.2 | D163: 1962 | E163: 2 | F163: 2 | G163: кирпичные | H163: скатная | I163: 29 | J163: Ремонт фундамента многоквартирного дома | K163: 2017-2019
J164: Ремонт внутридомовых инженерных систем электроснабжения, холодного водоснабжения, водоотведения, теплоснабжения | K164: 2029-2031
A165: 5 | B165: Бийский район, п. Заря, ул. Центральная, д. 26 | C165: 551.7 | D165: 1962 | E165: 2 | F165: 2 | G165: кирпичные | H165: скатная | I165: 26 | J165: Ремонт крыши; ремонт фундамента многоквартирного дома | K165: 2020-2022
J166: Ремонт внутридомовых инженерных систем электроснабжения, холодного водоснабжения, водоотведения, теплоснабжения | K166: 2026-2028
J167: Ремонт фасада | K167: 2035-2037
A168: 6 | B168: Бийский район, п. Заря, ул. Юбилейная, д. 1 | C168: 534.7 | D168: 1962 | E168: 2 | F168: 2 | G168: кирпичные | H168: скатная | I168: 50 | J168: Ремонт фундамента многоквартирного дома; ремонт внутридомовых инженерных систем электроснабжения, холодного водоснабжения, водоотведения, теплоснабжения; ремонт крыши | K168: 2026-2028
J169: Ремонт фасада | K169: 2035-2037
A170: 7 | B170: Бийский район, п. Заря, ул. Юбилейная, д. 2 | C170: 539.1 | D170: 1962 | E170: 2 | F170: 2 | G170: кирпичные | H170: скатная | I170: 27 | J170: Ремонт внутридомовых инженерных систем электроснабжения, холодного водоснабжения, водоотведения, теплоснабжения | K170: 2017-2019
J171: Ремонт фасада | K171: 2035-2037
A172: 8 | B172: Бийский район, п. Заря, ул. Юбилейная, д. 3 | C172: 532.7 | D172: 1962 | E172: 2 | F172: 2 | G172: кирпичные | H172: скатная | I172: 27 | J172: Ремонт фасада | K172: 2020-2022
J173: Ремонт внутридомовых инженерных систем электроснабжения, холодного водоснабжения, водоотведения, теплоснабжения | K173: 2032-2034
J174: Ремонт фундамента многоквартирного дома; ремонт крыши | K174: 2035-2037
A175: 9 | B175: Бийский район, п. Заря, ул. Юбилейная, д. 4 | C175: 543 | D175: 1962 | E175: 2 | F175: 2 | G175: кирпичные | H175: скатная | I175: 47 | J175: Ремонт фундамента многоквартирного дома | K175: 2020-2022
J176: Ремонт внутридомовых инженерных систем электроснабжения, холодного водоснабжения, водоотведения, теплоснабжения | K176: 2029-2031
J177: Ремонт фасада; ремонт крыши | K177: 2035-2037
A178: 10 | B178: Бийский район, п. Пригородный, ул. Новая, д. 18 | C178: 540 | D178: 1964 | E178: 2 | F178: 2 | G178: кирпичные | H178: скатная | I178: 19 | J178: Ремонт фундамента многоквартирного дома; ремонт крыши | K178: 2032-2034
J179: Ремонт фасада; ремонт внутридомовых инженерных систем электроснабжения, холодного водоснабжения, водоотведения, теплоснабжения | K179: 2035-2037
A180: 11 | B180: Бийский район, п. Пригородный, ул. Октябрьская, д. 12 | C180: 540 | D180: 1963 | E180: 2 | F180: 2 | G180: кирпичные | H180: скатная | I180: 17 | J180: Ремонт фундамента многоквартирного дома; ремонт фасада; ремонт внутридомовых инженерных систем электроснабжения, холодного водоснабжения, водоотведения, теплоснабжения | K180: 2032-2034
J181: Ремонт крыши | K181: 2035-2037
A182: 12 | B182: Бийский район, п. Чуйский, ул. Центральная, д. 1 | C182: 399.1 | D182: 1958 | E182: 2 | F182: 1 | G182: кирпичные | H182: скатная | I182: 18 | J182: Ремонт крыши | K182: 2014-2016
J183: Ремонт внутридомовых инженерных систем электроснабжения, холодного водоснабжения, водоотведения, теплоснабжения | K183: 2017-2019
J184: Ремонт фасада; ремонт фундамента многоквартирного дома | K184: 2026-2028
A185: 13 | B185: Бийский район, п. Чуйский, ул. Центральная, д. 2 | C185: 401.5 | D185: 1958 | E185: 2 | F185: 2 | G185: блочные | H185: скатная | I185: 16 | J185: Ремонт фасада | K185: 2026-2028
A186: 14 | B186: Бийский район, п. Чуйский, ул. Центральная, д. 3 | C186: 413.5 | D186: 1957 | E186: 2 | F186: 2 | G186: блочные | H186: скатная | I186: 16 | J186: Ремонт внутридомовых инженерных систем электроснабжения, холодного водоснабжения, водоотведения, теплоснабжения; ремонт крыши | K186: 2017-2019
J187: Ремонт фасада; ремонт фундамента многоквартирного дома | K187: 2026-2028
A188: 15 | B188: Бийский район, п. Чуйский, ул. Центральная, д. 4 | C188: 391.4 | D188: 1959 | E188: 2 | F188: 2 | G188: блочные | H188: скатная | I188: 25 | J188: Ремонт внутридомовых инженерных систем электроснабжения, холодного водоснабжения, водоотведения, теплоснабжения; ремонт крыши | K188: 2017-2019
J189: Ремонт фасада; ремонт фундамента многоквартирного дома | K189: 2026-2028
A190: 16 | B190: Бийский район, п. Чуйский, ул. Центральная, д. 5 | C190: 391.4 | D190: 1958 | E190: 2 | F190: 2 | G190: блочные | H190: скатная | I190: 16 | J190: Ремонт внутридомовых инженерных систем электроснабжения, холодного водоснабжения, водоотведения, теплоснабжения | K190: 2020-2022
A191: 17 | B191: Бийский район, п. Чуйский, ул. Центральная, д. 6 | C191: 391.3 | D191: 1970 | E191: 2 | F191: 2 | G191: блочные | H191: скатная | I191: 17 | J191: Ремонт внутридомовых инженерных систем электроснабжения, холодного водоснабжения, водоотведения, теплоснабжения | K191: 2020-2022
A192: 18 | B192: Бийский район, п. Чуйский, ул. Центральная, д. 8 | C192: 1109.7 | D192: 1957 | E192: 2 | F192: 3 | G192: кирпичные | H192: скатная | I192: 30 | J192: Ремонт фундамента многоквартирного дома | K192: 2020-2022
A193: 19 | B193: Бийский район, п. Чуйский, ул. Центральная, д. 9 | C193: 1066.1 | D193: 1977 | E193: 3 | F193: 4 | G193: кирпичные | H193: рулонная | I193: 39 | J193: Ремонт крыши | K193: 2020-2022
A194: 20 | B194: Бийский район, п. Чуйский, ул. Центральная, д. 10 | C194: 1401 | D194: 1985 | E194: 3 | F194: 4 | G194: кирпичные | H194: рулонная | I194: 51 | J194: Ремонт внутридомовых инженерных систем электроснабжения, холодного водоснабжения, водоотведения, теплоснабжения | K194: 2020-2022
A195: 21 | B195: Бийский район, п. Чуйский, ул. Шоссейная, д. 2 | C195: 551.1 | D195: 1969 | E195: 2 | F195: 2 | G195: блочные | H195: скатная | I195: 23 | J195: Ремонт крыши; ремонт внутридомовых инженерных систем электроснабжения, холодного водоснабжения, водоотведения, теплоснабжения | K195: 2020-2022
J196: Ремонт фундамента многоквартирного дома; ремонт фасада | K196: 2026-2028
A197: 22 | B197: Бийский район, с. Верх-Катунское, ул. Зелёная, д. 14 | C197: 359 | D197: 1963 | E197: 2 | F197: 2 | G197: кирпичные | H197: скатная | I197: 27 | J197: Ремонт внутридомовых инженерных систем электроснабжения, холодного водоснабжения, водоотведения, теплоснабжения; ремонт крыши | K197: 2020-2022
J198: Ремонт фундамента многоквартирного дома; ремонт фасада | K198: 2026-2028
A199: 23 | B199: Бийский район, с. Верх-Катунское, ул. Мира, д. 1 | C199: 391.9 | D199: 1964 | E199: 2 | F199: 2 | G199: кирпичные | H199: скатная | I199: 15 | J199: Ремонт фундамента многоквартирного дома; ремонт фасада; ремонт внутридомовых инженерных систем электроснабжения, холодного водоснабжения, водоотведения, теплоснабжения | K199: 2017-2019
J200: Ремонт крыши | K200: 2020-2022
A201: 24 | B201: Бийский район, с. Верх-Катунское, ул. Мира, д. 2 | C201: 620.2 | D201: 1964 | E201: 2 | F201: 2 | G201: кирпичные | H201: скатная | I201: 34 | J201: Ремонт внутридомовых инженерных систем электроснабжения, холодного водоснабжения, водоотведения, теплоснабжения | K201: 2020-2022
A202: 25 | B202: Бийский район, с. Верх-Катунское, ул. Мира, д. 3 | C202: 389.4 | D202: 1965 | E202: 2 | F202: 2 | G202: кирпичные | H202: скатная | I202: 14 | J202: Ремонт внутридомовых инженерных систем электроснабжения, холодного водоснабжения, водоотведения, теплоснабжения | K202: 2020-2022
A203: 26 | B203: Бийский район, с. Верх-Катунское, ул. Мира, д. 4 | C203: 633 | D203: 1967 | E203: 2 | F203: 2 | G203: кирпичные | H203: скатная | I203: 35 | J203: Ремонт фундамента многоквартирного дома | K203: 2020-2022
... 4296 more rows
